fUSD/lending_fUSD_20260627
["ID","MTS","AMOUNT","RATE_DAILY","PERIOD"]
[426539357,1782569439000,-180.19271999,0.00014799,2]
[426539356,1782569439000,-500.0,0.00014799,2]
[426539364,1782569439000,-2050.70090476,0.000148,2]
[426539370,1782569439000,-17548.01131106,0.000148,2]
[426539366,1782569439000,-807.75431938,0.000148,2]
[426539384,1782569439000,-10302.01657943,0.00014811,2]
[426539386,1782569439000,-1175.82426027,0.00014814,2]
[426539376,1782569439000,-170.42730272,0.000148,2]
[426539372,1782569439000,-1442130.70635022,0.000148,2]
[426539368,1782569439000,-11314.31526463,0.000148,2]
[426539388,1782569439000,-10588.22471482,0.00014833,2]
[426539375,1782569439000,-5615.4629,0.000148,2]
[426539380,1782569439000,-2500.0,0.000148,2]
[426539378,1782569439000,-178.31452087,0.000148,2]
[426539382,1782569439000,-10588.22471482,0.00014811,2]
[426539392,1782569439000,-1175.82426027,0.00014843,2]
[426539394,1782569439000,-10588.22471482,0.00014856,2]
[426539395,1782569439000,-10302.01657943,0.00014856,2]
[426539403,1782569439000,-10302.01657943,0.00014878,2]
[426539414,1782569439000,-178.31452087,0.000149,2]
[426539390,1782569439000,-10302.01657943,0.00014833,2]
[426539572,1782569440000,-1459.8070933,0.00015,2]
[426539571,1782569440000,-151.0,0.00012226,2]
[426539574,1782569440000,-711.22046912,0.00015,2]
[426539576,1782569440000,-1122.21055532,0.00015,2]
[426539575,1782569440000,-4294.91614636,0.00015,2]
[426539573,1782569440000,-416.88213483,0.00015,2]
[426539578,1782569441000,-504.0,0.00015,2]
[426539577,1782569441000,-9840.82822694,0.00015,2]
[426539620,1782569443000,-1121.38980766,0.00015,2]
[426539617,1782569443000,-500.0,0.00015,2]
[426539618,1782569443000,-375506.88729634,0.00015,2]
[426539624,1782569444000,-533.0,0.00015,2]
[426539622,1782569444000,-5292.09,0.00015,2]
[426539621,1782569444000,-11148.21368945,0.00015,2]
[426539625,1782569447000,-551.27409153,0.00015,2]
[426539628,1782569447000,-858.83892253,0.00015,2]
[426539626,1782569447000,-17538.202253,0.00015,2]
[426539627,1782569447000,-590.67,0.00015,2]
[426539640,1782569494000,151.0,0.00037512,120]
[426539641,1782569520000,2642435.19,0.00037512,120]
[426539642,1782569521000,-5000.0,0.00013597,2]
[426539645,1782569523000,-5000.0,0.00013597,2]
[426539643,1782569523000,-150.0,0.00013596,2]
[426539644,1782569523000,-4850.0,0.00013597,2]
[426539647,1782569525000,-5000.0,0.00013597,2]
[426539646,1782569525000,-5000.0,0.00013597,2]
[426539648,1782569526000,-5000.0,0.00013597,2]
[426539649,1782569526000,-5000.0,0.00013597,2]
[426539650,1782569526000,-5000.0,0.00013597,2]
[426539652,1782569527000,-5000.0,0.00013597,2]
[426539651,1782569527000,-5000.0,0.00013597,2]
[426539655,1782569528000,-5000.0,0.00013597,2]
[426539654,1782569528000,-5000.0,0.00013597,2]
[426539653,1782569528000,-5000.0,0.00013597,2]
[426539658,1782569529000,-5000.0,0.00013597,2]
[426539657,1782569529000,-5000.0,0.00013597,2]
[426539656,1782569529000,-5000.0,0.00013597,2]
[426539660,1782569530000,-5000.0,0.00013597,2]
[426539661,1782569530000,-5000.0,0.00013597,2]
[426539664,1782569531000,-5000.0,0.00013597,2]
[426539663,1782569531000,-5000.0,0.00013597,2]
[426539662,1782569531000,-5000.0,0.00013597,2]
[426539666,1782569532000,-5000.0,0.00013597,2]
[426539665,1782569532000,-5000.0,0.00013597,2]
[426539669,1782569533000,-5000.0,0.00013597,2]
[426539668,1782569533000,-5000.0,0.00013597,2]
[426539667,1782569533000,-5000.0,0.00013597,2]
[426539670,1782569534000,-5000.0,0.00013597,2]
[426539672,1782569534000,-5000.0,0.00013597,2]
[426539671,1782569534000,-5000.0,0.00013597,2]
[426539674,1782569535000,-5000.0,0.00013597,2]
[426539673,1782569535000,-5000.0,0.00013597,2]
[426539675,1782569536000,-5000.0,0.00013597,2]
[426539676,1782569536000,-5000.0,0.00013597,2]
[426539677,1782569536000,-5000.0,0.00013597,2]
[426539679,1782569537000,-5000.0,0.00013597,2]
[426539678,1782569537000,-5000.0,0.00013597,2]
[426539682,1782569538000,-5000.0,0.00013597,2]
[426539681,1782569538000,-5000.0,0.00013597,2]
[426539680,1782569538000,-5000.0,0.00013597,2]
[426539684,1782569539000,-5000.0,0.00013597,2]
[426539683,1782569539000,-5000.0,0.00013597,2]
[426539685,1782569540000,-5000.0,0.00013597,2]
[426539686,1782569540000,-5000.0,0.00013597,2]
[426539687,1782569540000,-5000.0,0.00013597,2]
[426539690,1782569541000,-5000.0,0.00013597,2]
[426539688,1782569541000,-5000.0,0.00013597,2]
[426539689,1782569541000,-5000.0,0.00013597,2]
[426539693,1782569542000,-5000.0,0.00013597,2]
[426539692,1782569542000,-5000.0,0.00013597,2]
[426539694,1782569543000,-5000.0,0.00013597,2]
[426539695,1782569544000,-5000.0,0.00013597,2]
[426539697,1782569545000,-5000.0,0.00013597,2]
[426539696,1782569545000,-5000.0,0.00013597,2]
[426539698,1782569546000,-5000.0,0.00013597,2]
[426539699,1782569547000,-454.80018758,0.00013497,2]
[426539700,1782569547000,-4545.19981242,0.00013597,2]
[426539701,1782569548000,-5000.0,0.00013597,2]
[426539704,1782569550000,151.000008,0.00037512,120]
[426539705,1782569554000,151.0,0.00037512,120]
[426539706,1782569555000,-1834.0,0.00013597,2]
[426539707,1782569558000,202.457429,0.00037512,120]
[426539709,1782569585000,304.93,0.0001192,2]
[426539710,1782569585000,304.93,0.00011996,2]
[426539708,1782569585000,304.93,0.00011894,2]
[426539711,1782569604000,151.0,0.00037512,120]
[426539712,1782569605000,151.000009,0.00037512,120]
[426539714,1782569614000,-150.0,0.00012124,2]
[426539715,1782569614000,-304.93,0.00012124,2]
[426539716,1782569614000,-304.93,0.00012303,2]
[426539713,1782569614000,-210.581385,0.00012124,2]
[426539718,1782569614000,-304.93,0.00012533,2]
[426539720,1782569614000,-151.30404061,0.00012789,2]
[426539721,1782569614000,-304.93,0.00012814,2]
[426539719,1782569614000,-250.0,0.00012789,2]
[426539717,1782569614000,-189.17762271,0.0001252,7]
[426539722,1782569615000,152.0,0.00012124,2]
[426539723,1782569626000,-292.0,0.00012432,2]
[426539724,1782569635000,-151.0,0.00012432,2]
[426539729,1782569661000,-151.0,0.00013059,2]
[426539736,1782569661000,-631.41014032,0.00013497,2]
[426539735,1782569661000,-720.12412534,0.00013497,2]
[426539734,1782569661000,-311.40988372,0.00013497,2]
[426539731,1782569661000,-304.93,0.00013146,2]
[426539730,1782569661000,-153.0,0.00013088,2]
[426539732,1782569661000,-261.22672262,0.00013394,2]
[426539733,1782569661000,-2466.899128,0.00013429,2]
[426539737,1782569662000,153.219225,0.00037512,120]
[426539739,1782569666000,-151.0,0.00013066,2]
[426539738,1782569666000,-503.896179,0.00012112,2]
[426539740,1782569666000,-3014.30785968,0.00013497,2]
[426539741,1782569666000,-348.804,0.00013497,2]
[426539742,1782569676000,151.0,0.00037512,120]
[426539744,1782569677000,151.0,0.00037512,120]
[426539743,1782569677000,151.0,0.00037512,120]
[426539745,1782569678000,267.904688,0.00037512,120]
[426539747,1782569683000,-151.0,0.00012611,2]
[426539746,1782569683000,-151.0,0.00012611,2]
[426539748,1782569685000,151.0,0.00012611,2]
[426539750,1782569704000,-519.82165139,0.00013497,2]
[426539749,1782569704000,-151.0,0.00012611,2]
[426539751,1782569704000,-519.82165139,0.00013512,2]
[426539755,1782569704000,-2966.21800418,0.00013597,2]
[426539754,1782569704000,-150.0,0.00013596,2]
[426539753,1782569704000,-173.31704165,0.00013596,2]
[426539752,1782569704000,-519.82165139,0.00013526,2]
[426539758,1782569709000,-500.0,0.00013596,2]
[426539757,1782569709000,-500.0,0.00013596,2]
[426539756,1782569709000,-163.70251835,0.00012954,2]
[426539759,1782569710000,-500.0,0.00013596,2]
[426539761,1782569710000,-500.0,0.00013596,2]
[426539760,1782569710000,-500.0,0.00013596,2]
[426539762,1782569710000,-256.06907877,0.00013596,2]
[426539763,1782569710000,-2080.22840288,0.00013597,2]
[426539764,1782569714000,-150.0,0.00012954,2]
[426539765,1782569714000,-4850.0,0.00013597,2]
[426539766,1782569727000,151.0,0.00037512,120]
[426539768,1782569727000,151.0,0.00037512,120]
[426539767,1782569727000,151.0,0.00037512,120]
[426539769,1782569728000,291.827897,0.00037512,120]
[426539772,1782569730000,-279.209,0.00013596,2]
[426539771,1782569730000,-500.0,0.00013596,2]
[426539770,1782569730000,-150.0,0.00013596,2]
[426539774,1782569742000,151.0,0.00037512,120]
[426539773,1782569742000,151.0,0.00037512,120]
[426539775,1782569748000,231.14712,0.00037512,120]
[426539777,1782569769000,151.0,0.00037512,120]
[426539778,1782569770000,151.0,0.00037512,120]
[426539780,1782569770000,155.493128,0.00037512,120]
[426539779,1782569770000,151.0,0.00037512,120]
[426539785,1782569775000,-500.0,0.00013596,2]
[426539782,1782569775000,-150.0,0.00013596,2]
[426539781,1782569775000,-151.0,0.00013596,2]
[426539783,1782569775000,-151.0,0.00013596,2]
[426539784,1782569775000,-220.791,0.00013596,2]
[426539787,1782569775000,-500.0,0.00013596,2]
[426539790,1782569775000,-500.0,0.00013596,2]
[426539789,1782569775000,-500.0,0.00013596,2]
[426539788,1782569775000,-500.0,0.00013596,2]
[426539791,1782569775000,-500.0,0.00013596,2]
[426539793,1782569775000,-327.209,0.00013596,2]
[426539792,1782569775000,-500.0,0.00013596,2]
[426539786,1782569775000,-500.0,0.00013596,2]
[426539796,1782569776000,-500.0,0.00013596,2]
[426539795,1782569776000,-500.0,0.00013596,2]
[426539794,1782569776000,-172.791,0.00013596,2]
[426539797,1782569776000,-500.0,0.00013596,2]
[426539798,1782569776000,-500.0,0.00013596,2]
[426539804,1782569776000,-327.209,0.00013596,2]
[426539800,1782569776000,-500.0,0.00013596,2]
[426539799,1782569776000,-500.0,0.00013596,2]
[426539803,1782569776000,-500.0,0.00013596,2]
[426539801,1782569776000,-500.0,0.00013596,2]
[426539802,1782569776000,-500.0,0.00013596,2]
[426539808,1782569777000,-500.0,0.00013596,2]
[426539805,1782569777000,-172.791,0.00013596,2]
[426539807,1782569777000,-500.0,0.00013596,2]
[426539806,1782569777000,-500.0,0.00013596,2]
[426539809,1782569777000,-500.0,0.00013596,2]
[426539810,1782569777000,-500.0,0.00013596,2]
[426539812,1782569777000,-500.0,0.00013596,2]
[426539813,1782569777000,-500.0,0.00013596,2]
[426539815,1782569777000,-327.209,0.00013596,2]
[426539814,1782569777000,-500.0,0.00013596,2]
[426539811,1782569777000,-500.0,0.00013596,2]
[426539816,1782569778000,-46.81314272,0.00013596,2]
[426539817,1782569778000,-500.0,0.00013596,2]
[426539818,1782569778000,-500.0,0.00013596,2]
[426539819,1782569778000,-500.0,0.00013596,2]
[426539820,1782569778000,-500.0,0.00013596,2]
[426539821,1782569778000,-191.41053264,0.00013596,2]
[426539823,1782569778000,-500.0,0.00013596,2]
[426539824,1782569778000,-500.0,0.00013596,2]
[426539825,1782569778000,-500.0,0.00013596,2]
[426539826,1782569778000,-500.0,0.00013596,2]
[426539827,1782569778000,-261.77632464,0.00013596,2]
[426539822,1782569778000,-500.0,0.00013596,2]
[426539829,1782569779000,-500.0,0.00013596,2]
[426539830,1782569779000,-500.0,0.00013596,2]
[426539832,1782569779000,-500.0,0.00013596,2]
[426539833,1782569779000,-500.0,0.00013596,2]
[426539828,1782569779000,-238.22367536,0.00013596,2]
[426539834,1782569779000,-500.0,0.00013596,2]
[426539837,1782569779000,-500.0,0.00013596,2]
[426539835,1782569779000,-500.0,0.00013596,2]
[426539836,1782569779000,-500.0,0.00013596,2]
[426539838,1782569779000,-261.77632464,0.00013596,2]
[426539831,1782569779000,-500.0,0.00013596,2]
[426539839,1782569780000,-238.22367536,0.00013596,2]
[426539840,1782569780000,-500.0,0.00013596,2]
[426539843,1782569780000,-500.0,0.00013596,2]
[426539842,1782569780000,-500.0,0.00013596,2]
[426539841,1782569780000,-500.0,0.00013596,2]
[426539844,1782569780000,-500.0,0.00013596,2]
[426539847,1782569780000,-500.0,0.00013596,2]
[426539845,1782569780000,-500.0,0.00013596,2]
[426539848,1782569780000,-450.0,0.00013596,2]
[426539849,1782569780000,-311.77632464,0.00013597,2]
[426539846,1782569780000,-500.0,0.00013596,2]
[426539850,1782569781000,-5000.0,0.00013597,2]
[426539851,1782569782000,-5000.0,0.00013597,2]
[426539855,1782569829000,-177.15677267,0.00013497,2]
[426539853,1782569829000,-2000.0,0.00013497,2]
[426539857,1782569829000,-151.0,0.00013497,2]
[426539856,1782569829000,-151.0,0.00013497,2]
[426539858,1782569829000,-20.84322733,0.00013596,2]
[426539854,1782569829000,-2500.0,0.00013497,2]
[426539863,1782569835000,-640.38361212,0.00013596,2]
[426539864,1782569835000,-2380.45961521,0.00013597,2]
[426539861,1782569835000,-500.0,0.00013596,2]
[426539862,1782569835000,-500.0,0.00013596,2]
[426539859,1782569835000,-479.15677267,0.00013596,2]
[426539860,1782569835000,-500.0,0.00013596,2]
[426539871,1782569897000,-4348.02,0.00013497,2]
[426539870,1782569897000,-166.66,0.00013446,2]
[426539868,1782569897000,-152.0,0.0001297,2]
[426539869,1782569897000,-166.66,0.00013174,2]
[426539867,1782569897000,-166.66,0.00012903,2]
[426539872,1782569905000,-152.0,0.00012919,2]
[426539874,1782569906000,-4697.0,0.00013497,2]
[426539873,1782569906000,-151.0,0.00012919,2]
[426539875,1782569913000,-5000.0,0.00013497,2]
[426539876,1782569914000,-5000.0,0.00013497,2]
[426539879,1782569924000,-420.2746,0.00013497,2]
[426539878,1782569924000,-1579.7254,0.00013497,2]
[426539877,1782569924000,-3420.2746,0.00013497,2]
[426539881,1782569925000,-153.0,0.00013497,2]
[426539883,1782569925000,-150.0,0.00013596,2]
[426539880,1782569925000,-697.0345,0.00013497,2]
[426539882,1782569925000,-151.0,0.00013497,2]
[426539884,1782569925000,-151.0,0.00013596,2]
[426539888,1782569925000,-150.0,0.00013596,2]
[426539886,1782569925000,-273.76479182,0.00013596,2]
[426539887,1782569925000,-150.0,0.00013596,2]
[426539889,1782569925000,-151.0,0.00013596,2]
[426539890,1782569925000,-2284.74434048,0.00013597,2]
[426539885,1782569925000,-268.1817677,0.00013596,2]
[426539891,1782569926000,-5000.0,0.00013597,2]
[426539892,1782569927000,-5000.0,0.00013597,2]
[426539894,1782570004000,-1160.1367,0.00013497,2]
[426539896,1782570190000,-1145.0,0.00013069,2]
[426539897,1782570190000,-152.0,0.0001307,2]
[426539898,1782570190000,-151.0,0.0001307,2]
[426539900,1782570190000,-150.0,0.0001307,2]
[426539899,1782570190000,-153.0,0.0001307,2]
[426539901,1782570190000,-152.0,0.0001307,2]
[426539902,1782570190000,-161.4,0.00013119,2]
[426539903,1782570190000,-525.33,0.00013166,2]
[426539905,1782570190000,-187.72723739,0.00013496,2]
[426539907,1782570190000,-240.48376029,0.00013496,2]
[426539906,1782570190000,-500.0,0.00013496,2]
[426539909,1782570190000,-164.50656074,0.00013496,2]
[426539908,1782570190000,-500.0,0.00013496,2]
[426539911,1782570190000,-369.2839131,0.00013496,2]
[426539910,1782570190000,-298.26852848,0.00013496,2]
[426539904,1782570190000,-150.0,0.00013166,2]
[426539913,1782570200000,-130.7160869,0.00013496,2]
[426539912,1782570200000,-151.0,0.0001307,2]
[426539914,1782570200000,-500.0,0.00013496,2]
[426539919,1782570200000,-500.0,0.00013496,2]
[426539916,1782570200000,-500.0,0.00013496,2]
[426539918,1782570200000,-500.0,0.00013496,2]
[426539917,1782570200000,-500.0,0.00013496,2]
[426539915,1782570200000,-500.0,0.00013496,2]
[426539923,1782570201000,-218.2839131,0.00013496,2]
[426539922,1782570201000,-500.0,0.00013496,2]
[426539920,1782570201000,-500.0,0.00013496,2]
[426539921,1782570201000,-500.0,0.00013496,2]
[426539924,1782570202000,-167.18277522,0.00013496,2]
[426539925,1782570202000,-500.0,0.00013496,2]
[426539926,1782570202000,-500.0,0.00013496,2]
[426539928,1782570202000,-500.0,0.00013496,2]
[426539927,1782570202000,-500.0,0.00013496,2]
[426539929,1782570202000,-500.0,0.00013496,2]
[426539931,1782570202000,-500.0,0.00013496,2]
[426539932,1782570202000,-500.0,0.00013496,2]
[426539934,1782570202000,-332.81722478,0.00013496,2]
[426539933,1782570202000,-500.0,0.00013496,2]
[426539930,1782570202000,-500.0,0.00013496,2]
[426539935,1782570203000,-167.18277522,0.00013496,2]
[426539936,1782570203000,-500.0,0.00013496,2]
[426539938,1782570203000,-500.0,0.00013496,2]
[426539939,1782570203000,-500.0,0.00013496,2]
[426539937,1782570203000,-500.0,0.00013496,2]
[426539940,1782570203000,-500.0,0.00013496,2]
[426539941,1782570203000,-500.0,0.00013496,2]
[426539943,1782570203000,-500.0,0.00013496,2]
[426539944,1782570203000,-832.81722478,0.00013497,2]
[426539942,1782570203000,-500.0,0.00013496,2]
[426539947,1782570204000,-622.28392478,0.00013497,2]
[426539946,1782570204000,-507.04607522,0.00013497,2]
[426539945,1782570204000,-3870.67,0.00013181,2]
[426539949,1782570205000,-3622.28392478,0.00013497,2]
[426539948,1782570205000,-1377.71607522,0.00013497,2]
[426539950,1782570266000,-537.323,0.00013227,2]
[426539960,1782570383000,-151.0,0.00012002,2]
[426539961,1782570383000,-151.0,0.00012002,2]
[426539965,1782570383000,-150.0,0.0001223,2]
[426539959,1782570383000,-151.0,0.00012002,2]
[426539962,1782570383000,-151.0,0.00012002,2]
[426539963,1782570383000,-150.0,0.0001223,2]
[426539966,1782570383000,-214.51,0.00012785,2]
[426539964,1782570383000,-150.0,0.0001223,2]
[426539967,1782570449000,176.44,0.00037449,120]
[426539978,1782570464000,505.2,0.00037449,120]
[426539977,1782570464000,505.2,0.00037449,120]
[426539976,1782570464000,505.2,0.00037449,120]
[426539980,1782570465000,505.2,0.00037449,120]
[426539982,1782570465000,505.2,0.00037449,120]
[426539981,1782570465000,505.2,0.00037449,120]
[426539987,1782570466000,505.2,0.00037449,120]
[426539986,1782570466000,505.2,0.00037449,120]
[426539984,1782570466000,505.2,0.00037449,120]
[426539983,1782570466000,505.2,0.00037449,120]
[426539991,1782570467000,505.2,0.00037449,120]
[426539990,1782570467000,505.2,0.00037449,120]
[426539989,1782570467000,505.2,0.00037449,120]
[426539992,1782570468000,505.2,0.00037449,120]
[426539994,1782570469000,505.2,0.00037449,120]
[426539995,1782570469000,505.2,0.00037449,120]
[426539997,1782570469000,505.2,0.00037449,120]
[426539998,1782570469000,505.2,0.00037449,120]
[426540000,1782570470000,505.2,0.00037449,120]
[426539999,1782570470000,505.2,0.00037449,120]
[426540001,1782570470000,505.2,0.00037449,120]
[426540004,1782570471000,505.39913609,0.00037449,120]
[426540003,1782570471000,505.2,0.00037449,120]
[426540002,1782570471000,505.2,0.00037449,120]
[426540006,1782570508000,508.19,0.00037449,120]
[426540007,1782570509000,404.05,0.00037449,120]
[426540008,1782570537000,-1492.5886,0.00012583,2]
[426540025,1782570631000,-150.0,0.0001291,2]
[426540034,1782570631000,-279.043,0.00013227,2]
[426540030,1782570631000,-471.90719927,0.00013105,2]
[426540031,1782570631000,-500.0,0.00013203,2]
[426540035,1782570631000,-151.0,0.00013227,2]
[426540029,1782570631000,-30.51280073,0.00013105,2]
[426540033,1782570631000,-2379.251,0.00013227,2]
[426540028,1782570631000,-150.0,0.00013104,2]
[426540027,1782570631000,-150.0,0.00013104,2]
[426540032,1782570631000,-250.0,0.00013203,2]
[426540026,1782570631000,-728.4,0.00013042,2]
[426540024,1782570631000,-150.0,0.0001291,2]
[426540019,1782570631000,-281.49602122,0.00012583,2]
[426540021,1782570631000,-239.10994737,0.0001263,2]
[426540023,1782570631000,-287.91,0.00012785,2]
[426540040,1782570631000,-151.0,0.00013227,2]
[426540022,1782570631000,-165.72,0.00012657,2]
[426540017,1782570631000,-691.33581743,0.00012583,2]
[426540018,1782570631000,-296.62123068,0.00012583,2]
[426540016,1782570631000,-278.16424389,0.00012583,2]
[426540015,1782570631000,-3714.300108,0.00012583,2]
[426540014,1782570631000,-365.7,0.00012477,2]
[426540020,1782570631000,-328.03,0.00012603,2]
[426540046,1782570631000,-558.78796994,0.00013396,2]
[426540042,1782570631000,-3035.7062378,0.00013328,2]
[426540045,1782570631000,-500.0,0.00013396,2]
[426540047,1782570631000,-500.0,0.00013396,2]
[426540061,1782570631000,-500.0,0.00013396,2]
[426540057,1782570631000,-500.0,0.00013396,2]
[426540058,1782570631000,-500.0,0.00013396,2]
[426540062,1782570631000,-500.0,0.00013396,2]
[426540056,1782570631000,-500.0,0.00013396,2]
[426540054,1782570631000,-500.0,0.00013396,2]
[426540052,1782570631000,-215.15459252,0.00013396,2]
[426540053,1782570631000,-500.0,0.00013396,2]
[426540050,1782570631000,-168.3386322,0.00013396,2]
[426540051,1782570631000,-500.0,0.00013396,2]
[426540055,1782570631000,-500.0,0.00013396,2]
[426540048,1782570631000,-500.0,0.00013396,2]
[426540060,1782570631000,-500.0,0.00013396,2]
[426540043,1782570631000,-150.0,0.00013395,2]
[426540044,1782570631000,-280.69973776,0.00013396,2]
[426540036,1782570631000,-151.0,0.00013227,2]
[426540037,1782570631000,-151.0,0.00013227,2]
[426540041,1782570631000,-2500.0,0.00013313,2]
[426540039,1782570631000,-150.0,0.00013227,2]
[426540049,1782570631000,-500.0,0.00013396,2]
[426540059,1782570631000,-500.0,0.00013396,2]
[426540038,1782570631000,-151.0,0.00013227,2]
[426540081,1782570632000,-500.0,0.00013396,2]
[426540079,1782570632000,-500.0,0.00013396,2]
[426540080,1782570632000,-500.0,0.00013396,2]
[426540082,1782570632000,-500.0,0.00013396,2]
[426540083,1782570632000,-500.0,0.00013396,2]
[426540086,1782570632000,-500.0,0.00013396,2]
[426540089,1782570632000,-500.0,0.00013396,2]
[426540088,1782570632000,-500.0,0.00013396,2]
[426540095,1782570632000,-500.0,0.00013396,2]
[426540096,1782570632000,-500.0,0.00013396,2]
[426540092,1782570632000,-500.0,0.00013396,2]
[426540091,1782570632000,-500.0,0.00013396,2]
[426540087,1782570632000,-500.0,0.00013396,2]
[426540090,1782570632000,-500.0,0.00013396,2]
[426540097,1782570632000,-500.0,0.00013396,2]
[426540084,1782570632000,-500.0,0.00013396,2]
[426540073,1782570632000,-235.53097713,0.00013396,2]
[426540074,1782570632000,-500.0,0.00013396,2]
[426540094,1782570632000,-500.0,0.00013396,2]
[426540064,1782570632000,-500.0,0.00013396,2]
[426540072,1782570632000,-264.46902287,0.00013396,2]
[426540065,1782570632000,-500.0,0.00013396,2]
[426540063,1782570632000,-500.0,0.00013396,2]
[426540066,1782570632000,-500.0,0.00013396,2]
[426540068,1782570632000,-205.9432965,0.00013396,2]
[426540070,1782570632000,-500.0,0.00013396,2]
[426540067,1782570632000,-500.0,0.00013396,2]
[426540069,1782570632000,-500.0,0.00013396,2]
[426540071,1782570632000,-500.0,0.00013396,2]
[426540085,1782570632000,-500.0,0.00013396,2]
[426540075,1782570632000,-500.0,0.00013396,2]
[426540078,1782570632000,-500.0,0.00013396,2]
[426540076,1782570632000,-500.0,0.00013396,2]
[426540077,1782570632000,-500.0,0.00013396,2]
[426540093,1782570632000,-500.0,0.00013396,2]
[426540115,1782570632000,-209.36077695,0.00013396,2]
[426540098,1782570632000,-500.0,0.00013396,2]
[426540119,1782570632000,-500.0,0.00013396,2]
[426540120,1782570632000,-500.0,0.00013396,2]
[426540122,1782570632000,-500.0,0.00013396,2]
[426540124,1782570632000,-500.0,0.00013396,2]
[426540125,1782570632000,-500.0,0.00013396,2]
[426540126,1782570632000,-500.0,0.00013396,2]
[426540118,1782570632000,-300.0,0.00013396,2]
[426540123,1782570632000,-500.0,0.00013396,2]
[426540127,1782570632000,-500.0,0.00013396,2]
[426540132,1782570632000,-344.69894631,0.00013397,2]
[426540128,1782570632000,-500.0,0.00013396,2]
[426540131,1782570632000,-50100.81621749,0.00013397,2]
[426540130,1782570632000,-1785.45144529,0.00013397,2]
[426540099,1782570632000,-500.0,0.00013396,2]
[426540129,1782570632000,-214.54855471,0.00013397,2]
[426540117,1782570632000,-500.0,0.00013396,2]
[426540133,1782570632000,-407.62725079,0.00013397,2]
[426540111,1782570632000,-500.0,0.00013396,2]
[426540112,1782570632000,-500.0,0.00013396,2]
[426540101,1782570632000,-500.0,0.00013396,2]
[426540102,1782570632000,-500.0,0.00013396,2]
[426540100,1782570632000,-500.0,0.00013396,2]
[426540103,1782570632000,-500.0,0.00013396,2]
[426540104,1782570632000,-500.0,0.00013396,2]
[426540107,1782570632000,-500.0,0.00013396,2]
[426540108,1782570632000,-500.0,0.00013396,2]
[426540105,1782570632000,-500.0,0.00013396,2]
[426540109,1782570632000,-500.0,0.00013396,2]
[426540110,1782570632000,-500.0,0.00013396,2]
[426540116,1782570632000,-500.0,0.00013396,2]
[426540121,1782570632000,-500.0,0.00013396,2]
[426540113,1782570632000,-500.0,0.00013396,2]
[426540114,1782570632000,-290.63922305,0.00013396,2]
[426540106,1782570632000,-500.0,0.00013396,2]
[426540162,1782570637000,-2500.0,0.00013313,2]
[426540163,1782570637000,-56495.00000001,0.00013397,2]
[426540165,1782570637000,-590.63,0.00013397,2]
[426540167,1782570637000,-773.99999997,0.00013397,2]
[426540166,1782570637000,-944.30311392,0.00013397,2]
[426540168,1782570637000,-639.9142679,0.00013397,2]
[426540164,1782570637000,-4902.20348945,0.00013397,2]
[426540222,1782570638000,-490.74551356,0.00013679,2]